bitfinex/quotes_SOLUSD_20250129
["timestamp","ask_amount","ask_price","bid_price","bid_amount"]
[1738167676949,21.77087343,226.75,226.68,0.66152594]
[1738167677189,20.44787343,226.75,226.68,5.07292594]
[1738167677394,20.44787343,226.75,226.68,0.66152594]
[1738167678159,20.44787343,226.73,226.68,0.66152594]
[1738167678474,20.44787343,226.75,226.68,0.66152594]
[1738167678849,20.44787343,226.75,226.68,5.07302594]
[1738167680874,21.77087343,226.75,226.68,5.07302594]
[1738167681282,21.77087343,226.75,226.68,0.66152594]
[1738167681573,21.77087343,226.75,226.68,21.10939937]
[1738167682072,0.12549,226.76,226.7,20.44787343]
[1738167682257,0.12549,226.76,226.71,0.66151956]
[1738167683874,1.44849,226.76,226.71,0.66151956]
[1738167686178,20.44787343,226.83,226.74,20.44787343]
[1738167686368,1.3225,226.84,226.76,20.44787343]
[1738167686678,1.3225,226.84,226.78,20.44787343]
[1738167686850,20.44787343,226.79,226.74,128.063]
[1738167687171,0.25098,226.74,226.68,0.063]
[1738167687374,20.44787343,226.73,226.68,0.063]
[1738167687581,0.25098,226.74,226.68,0.063]
[1738167687582,20.44787343,226.71,226.68,0.063]
[1738167688083,21.77117343,226.71,226.68,0.063]
[1738167688981,0.25098,226.7,226.68,0.063]
[1738167689157,20.82434343,226.69,226.68,0.063]
[1738167689965,21.77117343,226.71,226.68,0.063]
[1738167690253,20.44787343,226.69,226.68,0.063]
[1738167691291,1.44879,226.7,226.68,0.063]
[1738167692196,20.44787343,226.69,226.68,0.063]
[1738167692361,20.69885343,226.69,226.68,0.063]
[1738167692955,44.47573743,226.69,226.68,0.063]
[1738167693385,45.79903743,226.69,226.68,0.063]
[1738167693658,45.92452743,226.69,226.68,0.0001]
[1738167696181,22.14764343,226.69,226.68,0.0001]
[1738167697571,45.92452743,226.69,226.68,0.0001]
[1738167698264,45.92452743,226.69,226.61,0.063]
[1738167698265,20.25098,226.65,226.61,0.063]
[1738167698464,20.69885343,226.62,226.61,0.063]
[1738167699055,44.47573743,226.62,226.61,0.063]
[1738167699668,44.47573743,226.62,226.61,0.0001]
[1738167700123,66.24741086,226.62,226.61,0.0001]
[1738167700391,67.24741086,226.62,226.61,0.0001]
[1738167700683,66.24741086,226.62,226.61,0.0001]
[1738167700855,67.24741086,226.62,226.61,0.0001]
[1738167701968,67.37290086,226.62,226.61,0.0001]
[1738167702587,46.92502743,226.62,226.61,0.0001]
[1738167702762,22.14814343,226.62,226.61,0.0001]
[1738167703189,22.02265343,226.62,226.61,0.0001]
[1738167703910,22.14814343,226.62,226.61,0.0001]
[1738167705082,22.02265343,226.62,226.61,0.0001]
[1738167705281,21.57478,226.62,226.61,0.0001]
[1738167705483,3.33534724,226.69,226.61,0.0001]
[1738167705484,1.3235,226.66,226.61,0.0001]
[1738167705682,0.03,226.69,226.64,20.44787343]
[1738167705894,0.03,226.69,226.67,20.44787343]
[1738167706082,0.03,226.69,226.68,21.10949269]
[1738167706913,0.03,226.69,226.68,22.76369269]
[1738167707110,0.03,226.69,226.68,144.36369269]
[1738167707309,21.77057343,226.8,226.69,6.622]
[1738167707496,21.77057343,226.8,226.72,20.44787343]
[1738167707804,0.25098,226.79,226.73,0.66147849]
[1738167709003,0.25098,226.77,226.7,21.10934665]
[1738167709515,20.44787343,226.78,226.7,21.10934665]
[1738167709678,1.3228,226.79,226.73,20.44787343]
[1738167709879,1.3228,226.79,226.74,0.66142547]
[1738167710082,1.3227,226.81,226.76,20.44787343]
[1738167710300,1.3226,226.83,226.77,0.66133458]
[1738167710784,20.69885343,226.82,226.77,0.66133458]
[1738167710993,0.12549,226.77,226.71,0.66137795]
[1738167711192,20.44787343,226.76,226.7,0.66152609]
[1738167711789,20.44787343,226.77,226.7,21.10939952]
[1738167711996,20.44787343,226.76,226.7,0.66152609]
[1738167712395,20.44787343,226.77,226.7,0.66152609]
[1738167713294,0.03,226.79,226.71,20.44787343]
[1738167713295,0.25098,226.78,226.71,20.44787343]
[1738167713501,0.25098,226.78,226.72,0.66145389]
[1738167713701,21.80067343,226.79,226.72,0.66145389]
[1738167714603,20.57336343,226.78,226.72,0.66145389]
[1738167715018,20.44787343,226.76,226.71,0.66150187]
[1738167715309,1.323,226.75,226.71,0.66150187]
[1738167715495,20.44787343,226.76,226.71,0.66150187]
[1738167715689,21.77077343,226.77,226.71,0.66150187]
[1738167716108,1.3229,226.77,226.71,0.66150187]
[1738167716412,0.03,226.79,226.73,20.44787343]
[1738167716613,0.03,226.79,226.75,20.44787343]
[1738167716785,0.03,226.79,226.76,0.6613829]
[1738167718987,0.03,226.79,226.74,0.66138608]
[1738167719308,0.03,226.79,226.77,20.44787343]
[1738167719489,0.03,226.79,226.78,0.66126181]
[1738167719688,0.03,226.79,226.78,21.10913524]
[1738167720515,0.03,226.79,226.78,148.99783524]
[1738167720723,0.03,226.88,226.78,172.11345743]
[1738167720885,0.03,226.88,226.84,20.44787343]
[1738167721212,0.03,226.88,226.81,4.4088]
[1738167721213,0.12549,226.87,226.81,0.6611244]
[1738167721595,0.03,226.88,226.81,126.6700244]
[1738167721803,0.03,226.88,226.87,20.44787343]
[1738167722003,0.03,226.88,226.87,148.69777343]
[1738167722315,0.03,226.9,226.87,148.69777343]
[1738167722490,0.03,226.9,226.89,44.22475743]
[1738167722694,0.03,226.9,226.89,165.82475743]
[1738167722885,0.03,226.9,226.89,167.32671743]
[1738167723087,0.03,226.9,226.89,142.04787343]
[1738167723825,0.03,226.91,226.9,29.818784]
[1738167723989,0.03,226.91,226.9,50.92745471]
[1738167724192,0.03,226.91,226.9,27.15057071]
[1738167724496,0.03,226.91,226.9,22.74337071]
[1738167725416,0.03,226.98,226.94,23.776884]
[1738167725619,0.03,226.98,226.97,20.44787343]
[1738167725825,0.03,226.98,226.97,142.70852015]
[1738167725995,0.03,226.98,226.97,142.04787343]
[1738167726923,0.03,226.98,226.92,142.04787343]
[1738167727220,20.44787343,226.97,226.93,0.66085308]
[1738167727419,20.44787343,226.97,226.91,0.66087513]
[1738167727795,1.3517,226.98,226.91,21.10874856]
[1738167727796,21.79957343,226.98,226.91,21.10874856]
[1738167728827,0.03,226.98,226.96,20.44787343]
[1738167729023,0.03,226.98,226.97,21.10858561]
[1738167729199,0.03,226.98,226.97,153.18618561]
[1738167729400,0.03,226.98,226.97,152.52547343]
[1738167730699,0.03,226.99,226.98,1.6248]
[1738167730895,0.03,226.99,226.98,27.13886251]
[1738167733412,0.03,226.99,226.98,148.73886251]
[1738167733715,0.03,226.99,226.98,148.07827343]
[1738167734628,0.03,226.99,226.98,201.85515743]
[1738167735922,0.03,226.99,226.98,202.35711743]
[1738167736233,0.03,227.02,227.01,53.776884]
[1738167736408,0.03,227.02,227.01,74.88520332]
[1738167738541,0.03,227.02,227.01,25.51331932]
[1738167739027,0.03,227.02,227.01,79.29020332]
[1738167739230,0.03,227.02,227.01,200.89020332]
[1738167739433,0.03,227.02,227.01,176.45287343]
[1738167741331,0.03,227.02,227.01,121.6]
[1738167741630,0.03,227.02,227.01,142.04787343]
[1738167741938,0.03,227.02,227.01,170.22975743]
[1738167744542,0.03,227.08,227.04,30.0]
[1738167744743,0.03,227.08,227.05,45.38706676]
[1738167745056,0.0001,227.08,227.07,81.991744]
[1738167745344,0.0001,227.08,227.07,106.25979904]
[1738167745545,0.0001,227.08,227.07,106.59961743]
[1738167745712,0.03,227.1,227.09,0.50196]
[1738167745917,0.03,227.1,227.09,167.98686465]
[1738167746125,0.03,227.1,227.09,171.73021743]
[1738167746350,0.0001,227.1,227.09,171.73021743]
[1738167746529,0.0001,227.11,227.1,55.278844]
[1738167746728,0.03,227.29,227.1,55.278844]
[1738167746729,0.03,227.28,227.19,20.0]
[1738167746935,0.03,227.28,227.25,20.44787343]
[1738167747239,0.03,227.28,227.27,20.44787343]
[1738167747547,0.03,227.28,227.26,0.65986685]
[1738167748849,20.47787343,227.28,227.2,145.20787343]
[1738167749022,20.47787343,227.28,227.21,0.65999647]
[1738167749444,20.44787343,227.26,227.21,0.65999647]
[1738167749747,20.47787343,227.28,227.22,20.44787343]
[1738167749963,0.03,227.28,227.23,0.65993559]
[1738167751027,20.0,227.27,227.23,0.65993559]
[1738167751718,0.03,227.28,227.23,21.10780902]
[1738167753245,0.03,227.28,227.25,20.44787343]
[1738167753549,0.03,227.28,227.26,0.65987892]
[1738167754554,0.03,227.28,227.27,0.65991085]
[1738167754721,0.03,227.28,227.24,0.65992576]
[1738167755551,0.03,227.28,227.24,21.10779919]
[1738167756630,20.47787343,227.31,227.24,21.10779919]
[1738167757029,0.03,227.31,227.24,21.10779919]
[1738167757847,1.3198,227.3,227.24,21.10779919]
[1738167758454,0.03,227.31,227.25,20.44787343]
[1738167758655,1.3498,227.31,227.26,0.6598666]
[1738167758840,0.03,227.31,227.26,21.10774003]
[1738167759326,1.3498,227.31,227.26,0.6598666]
[1738167759822,21.79767343,227.31,227.26,0.6598666]
[1738167762754,14.13022272,227.31,227.26,0.6598666]
[1738167762954,0.03,227.31,227.26,13.44028932]
[1738167763630,1.3497,227.31,227.26,13.44028932]
[1738167763924,1.3497,227.31,227.26,0.6598666]
[1738167764129,12.78042272,227.3,227.26,0.6598666]
[1738167765266,1.3198,227.3,227.26,0.6598666]
[1738167765953,14.10022272,227.3,227.26,0.6598666]
[1738167766158,14.10022272,227.3,227.22,134.38042272]
[1738167766159,12.78042272,227.28,227.23,0.66004236]
[1738167766657,12.78042272,227.29,227.23,0.66004236]
[1738167767450,1.3199,227.28,227.23,0.66004236]
[1738167767763,1.3199,227.28,227.23,13.44046508]
[1738167768364,1.3198,227.3,227.24,12.78042272]
[1738167768531,1.3198,227.3,227.25,0.65990911]
[1738167769868,12.78042272,227.29,227.25,0.65990911]
[1738167770047,12.78042272,227.26,227.22,121.6]
[1738167770237,12.78042272,227.27,227.23,0.66004852]
[1738167770553,12.78042272,227.27,227.2,0.66001855]
[1738167770861,12.78042272,227.23,227.19,0.66003282]
[1738167771752,1.3203,227.23,227.19,0.66003282]
[1738167772136,1.3199,227.28,227.21,12.78042272]
[1738167772361,1.3199,227.28,227.22,0.65998616]
[1738167772362,12.78042272,227.27,227.22,0.65998616]
[1738167772669,12.78042272,227.23,227.19,0.66003501]
[1738167772979,12.78042272,227.22,227.18,121.6]
[1738167773265,12.78042272,227.22,227.15,12.78042272]
[1738167773444,12.78042272,227.23,227.16,0.6601694]
[1738167773652,1.3203,227.22,227.16,0.6601694]
[1738167774061,1.3203,227.22,227.16,13.44059212]
[1738167776158,1.3202,227.23,227.16,13.44059212]
[1738167777179,12.78042272,227.26,227.19,12.78042272]
[1738167777346,0.03,227.28,227.22,12.78042272]
[1738167777550,0.03,227.28,227.25,12.78042272]
[1738167777753,0.03,227.28,227.26,0.65984825]
[1738167780493,0.03,227.28,227.25,121.6]
[1738167780680,12.78042272,227.27,227.25,121.6]
[1738167780883,12.78042272,227.26,227.19,134.38042272]
[1738167781197,12.78042272,227.25,227.2,0.66005229]
[1738167781398,0.03,227.28,227.2,0.66005229]
[1738167781399,12.78042272,227.23,227.2,0.66005229]
[1738167781600,1.3203,227.21,227.17,0.66012292]
[1738167782177,14.10072272,227.21,227.17,0.66012292]
[1738167782503,12.78042272,227.19,227.14,0.66020709]
[1738167783406,12.78042272,227.19,227.15,0.66025133]
[1738167783571,12.78042272,227.19,227.13,0.66025757]
[1738167783772,14.10092272,227.19,227.13,0.66025757]
[1738167783973,12.78042272,227.17,227.13,0.66025757]
[1738167784173,12.78042272,227.15,227.1,0.66031153]
[1738167784401,12.78042272,227.12,227.06,123.2665]
[1738167784581,12.78042272,227.11,227.07,0.66047118]
[1738167784781,12.78042272,227.11,227.04,0.66045775]
[1738167785188,0.12549,227.16,227.04,0.66045775]
[1738167785189,12.78042272,227.09,227.04,0.66045775]
[1738167785681,1.3212,227.06,226.99,141.31195325]
[1738167785880,12.78042272,227.05,227.0,0.66064259]
[1738167786290,1.3212,227.06,227.0,0.66064259]
[1738167786477,12.78042272,227.09,227.01,12.78042272]
[1738167786679,12.78042272,227.09,227.02,0.66055485]
[1738167787274,1.3209,227.11,227.02,0.66055485]
[1738167787275,14.10132272,227.11,227.03,12.78042272]
[1738167787478,20.0,227.12,227.07,12.78042272]
[1738167787677,14.10102272,227.17,227.09,12.78042272]
[1738167787980,1.3205,227.19,227.13,12.78042272]
[1738167788280,12.78042272,227.17,227.1,0.66025366]
[1738167790003,1.3206,227.16,227.1,0.66025366]
[1738167790703,1.3206,227.16,227.1,21.13383982]
[1738167791105,21.79418616,227.16,227.08,21.13396739]
[1738167791294,20.47358616,227.14,227.08,0.66038123]
[1738167791606,21.79418616,227.16,227.09,20.47358616]
[1738167791801,21.79418616,227.16,227.1,0.66034729]
[1738167793308,1.3205,227.18,227.11,20.47358616]
[1738167793486,20.47358616,227.22,227.13,20.47358616]
[1738167793686,20.47358616,227.24,227.16,20.47358616]
[1738167793998,20.47358616,227.22,227.17,0.66013091]
[1738167794805,20.0,227.19,227.16,121.6]
[1738167795101,20.47358616,227.18,227.1,146.47688616]
[1738167795324,20.47358616,227.18,227.11,0.66029118]
[1738167795623,20.47358616,227.16,227.11,0.66029118]
[1738167795787,20.47358616,227.16,227.08,20.47358616]
[1738167795788,20.47358616,227.14,227.08,0.66039429]
[1738167795990,20.47358616,227.1,227.06,1.5067]
[1738167796198,20.47358616,227.08,227.03,0.66052653]
[1738167799111,0.12549,227.13,227.03,0.66052653]
[1738167799112,20.47358616,227.1,227.03,0.66052653]
[1738167799321,21.79438616,227.12,227.04,20.47358616]
[1738167799501,1.3208,227.12,227.06,20.47358616]
[1738167799827,20.47358616,227.14,227.07,0.66043176]
[1738167799828,1.3208,227.13,227.07,0.66043176]
[1738167801821,21.79448616,227.12,227.07,0.66043176]
[1738167802115,21.79448616,227.12,227.04,0.66047392]
[1738167802116,20.47358616,227.08,227.04,0.66047392]
[1738167802898,20.47358616,227.1,227.04,0.66047392]
[1738167803223,20.47358616,227.1,227.05,0.66055353]
[1738167803393,20.47358616,227.1,227.02,26.61208616]
[1738167803394,20.47358616,227.1,227.03,0.66055359]
[1738167803592,20.47358616,227.12,227.04,20.47358616]
[1738167803911,20.47358616,227.12,227.05,0.6604812]
[1738167804497,20.47358616,227.14,227.06,20.47358616]
[1738167804697,20.47358616,227.14,227.07,0.66042306]
[1738167806233,1.3207,227.15,227.08,20.47358616]
[1738167806530,20.918711,227.19,227.07,0.66042306]
[1738167806531,21.79408616,227.18,227.1,20.47358616]
[1738167806702,20.0,227.15,227.11,0.66034535]
[1738167807720,21.3207,227.15,227.09,0.66035881]
[1738167810025,20.47358616,227.14,227.09,0.66035881]
[1738167810209,20.47358616,227.12,227.08,0.66043883]
[1738167810929,1.3209,227.11,227.05,0.6604753]
[1738167812319,21.79438616,227.12,227.05,5.0646753]
[1738167812520,1.3208,227.12,227.05,5.0646753]
[1738167812706,1.3208,227.12,227.05,17.86551968]
[1738167812905,1.3208,227.12,227.05,13.46131968]
[1738167816034,1.3208,227.12,227.05,17.86551968]
[1738167816533,12.80084438,227.11,227.05,0.6604753]
[1738167816830,12.80084438,227.09,227.04,0.66054067]
[1738167817326,12.80084438,227.09,227.03,0.063]
[1738167817327,1.3211,227.08,227.03,0.72353836]
[1738167817527,12.80084438,227.07,227.03,0.063]
[1738167817832,12.80084438,227.05,227.03,0.063]
[1738167818240,12.80084438,227.07,227.03,0.063]
[1738167819242,0.12549,227.04,227.03,0.063]
[1738167819436,12.80084438,227.05,227.03,0.063]
[1738167820110,1.3212,227.06,227.03,0.063]
[1738167820306,12.80084438,227.05,227.03,0.063]
[1738167821246,14.12204438,227.07,227.03,0.063]
[1738167822142,12.80084438,227.09,227.03,0.72358775]
[1738167822312,14.12184438,227.09,227.03,0.72358775]
[1738167823022,12.80084438,227.11,227.03,122.32358775]
[1738167823228,14.12174438,227.11,227.04,12.80084438]
[1738167823425,14.12174438,227.11,227.05,0.66046795]
[1738167824057,14.12144438,227.16,227.08,12.80084438]
[1738167824359,14.12144438,227.16,227.09,0.66038578]
[1738167824539,1.3206,227.16,227.1,12.80084438]
[1738167824743,14.12144438,227.16,227.11,0.66035154]
[1738167824940,20.0,227.13,227.11,0.66035154]
[1738167825142,20.0,227.13,227.09,0.66039663]
[1738167825635,21.3208,227.13,227.09,0.66039663]
[1738167826148,21.3208,227.13,227.06,12.80084438]
[1738167826149,12.80084438,227.1,227.06,0.66041776]
[1738167826331,12.80084438,227.08,227.04,1.6155]
[1738167826533,12.80084438,227.1,227.05,0.66059314]
[1738167827463,32.80084438,227.12,227.05,0.66059314]
[1738167827645,32.80084438,227.12,227.06,12.80084438]
[1738167827646,20.0,227.12,227.06,12.80084438]
[1738167827847,20.0,227.12,227.07,0.66038626]
[1738167828162,20.0,227.11,227.07,0.66038626]
[1738167828535,12.80084438,227.16,227.08,12.80084438]
[1738167828764,14.12154438,227.16,227.09,0.66031917]
[1738167829056,20.0,227.11,227.09,0.66031917]
[1738167829655,20.0,227.11,227.07,0.66042353]
[1738167830044,12.80084438,227.1,227.06,121.6]
[1738167830257,12.80084438,227.08,227.04,1.6155]
[1738167831065,12.80084438,227.08,227.05,0.66055191]
[1738167832069,21.3211,227.07,227.05,0.66055191]
[1738167832961,1.3211,227.07,227.05,0.063]
[1738167833271,12.80084438,227.06,227.05,0.063]
[1738167834059,1.3212,227.06,227.05,0.063]
[1738167834276,14.12184438,227.1,227.05,0.063]
[1738167834774,14.12184438,227.1,227.05,0.72354234]
[1738167834976,12.80084438,227.12,227.05,122.32354234]
[1738167835300,12.80084438,227.14,227.06,12.80084438]
[1738167835565,12.80084438,227.14,227.07,0.66037896]
[1738167835871,1.3209,227.11,227.07,0.66037896]
[1738167836069,1.3209,227.11,227.06,121.6]
[1738167836070,12.80084438,227.1,227.06,121.6]
[1738167836282,12.80084438,227.1,227.07,0.66051057]
[1738167836470,12.80084438,227.08,227.06,121.6]
[1738167836665,12.80084438,227.08,227.05,0.063]
[1738167837053,20.0,227.06,227.05,0.063]
[1738167837951,12.80084438,227.1,227.05,0.063]
[1738167838152,1.321,227.09,227.05,0.063]
[1738167838666,14.12184438,227.1,227.06,0.66046667]
[1738167840681,12.80084438,227.12,227.06,0.66046667]
[1738167840993,14.12144438,227.16,227.08,12.80084438]
[1738167841163,14.12144438,227.16,227.09,0.66033054]
[1738167841363,14.12144438,227.16,227.09,122.26033054]
[1738167841564,12.80084438,227.18,227.1,12.80084438]
[1738167841770,12.80084438,227.2,227.12,18.98644438]
[1738167841989,12.80084438,227.18,227.13,0.66023756]
[1738167842163,12.80084438,227.14,227.09,121.6]
[1738167842365,12.80084438,227.12,227.08,1.5312]
[1738167842564,12.80084438,227.12,227.09,0.66042521]
[1738167842883,12.80084438,227.1,227.08,1.5312]
[1738167843062,12.80084438,227.1,227.07,6.84602431]
[1738167843264,12.80084438,227.08,227.05,0.063]
[1738167844692,12.80084438,227.1,227.05,0.063]
[1738167845196,1.321,227.09,227.06,0.66047104]
[1738167845496,1.321,227.09,227.05,0.063]
[1738167845795,12.80084438,227.06,227.05,0.063]
[1738167846778,20.0,227.06,227.05,0.063]
[1738167847874,12.80084438,227.08,227.05,0.72355713]
[1738167848076,12.80084438,227.1,227.05,0.72355713]
[1738167848275,1.3208,227.12,227.06,12.80084438]
[1738167848482,1.3208,227.14,227.08,12.80084438]
[1738167848684,1.3207,227.15,227.09,0.66039734]
[1738167848992,17.620432,227.15,227.09,0.66039734]
[1738167849383,20.0,227.13,227.09,0.66039734]
[1738167849888,14.12154438,227.16,227.09,0.66039734]
[1738167850186,1.3205,227.18,227.12,12.80084438]
[1738167850495,12.80084438,227.24,227.16,12.80084438]
[1738167850692,14.12104438,227.24,227.17,0.66008185]
[1738167851685,20.0,227.21,227.17,0.66008185]
[1738167851887,1.3203,227.22,227.17,0.66008185]
[1738167852082,14.12114438,227.22,227.17,0.66008185]
[1738167852279,20.0,227.19,227.17,0.66008185]
[1738167852484,20.0,227.19,227.13,0.66022201]
[1738167852676,1.3203,227.22,227.18,12.80084438]
[1738167852877,1.3203,227.22,227.19,0.66008653]
[1738167853285,14.12104438,227.24,227.19,0.66008653]
[1738167853802,20.0,227.21,227.2,0.66006336]
[1738167853983,1.3202,227.24,227.2,0.66006336]
[1738167854191,20.0,227.21,227.2,0.66006336]
[1738167854392,20.0,227.21,227.17,0.66010138]
[1738167856094,1.3202,227.24,227.18,12.80084438]
[1738167856293,1.3202,227.24,227.19,0.66004252]
[1738167856901,20.0,227.21,227.19,0.66004252]
[1738167857387,1.3202,227.24,227.19,0.66004252]
[1738167857582,1.3501,227.25,227.19,0.66004252]
[1738167857810,1.3501,227.25,227.2,12.80084438]
[1738167858005,1.3501,227.25,227.21,0.66000438]
[1738167859113,0.03,227.25,227.22,12.80084438]
[1738167859306,0.03,227.25,227.24,12.80084438]
[1738167859512,0.03,227.25,227.24,134.40084438]
[1738167860207,0.03,227.25,227.24,138.80144438]
[1738167860611,0.03,227.25,227.24,158.17772838]
[1738167860908,0.03,227.25,227.24,134.40084438]
[1738167862101,0.03,227.25,227.24,158.17772838]
[1738167862307,0.03,227.25,227.24,162.57832838]
[1738167862610,0.03,227.25,227.24,163.08028838]
[1738167863308,0.03,227.25,227.24,158.17772838]
[1738167863610,0.03,227.25,227.24,121.6]
[1738167864905,0.03,227.25,227.22,6.5282]
[1738167865088,0.03,227.25,227.23,0.65998551]
[1738167868192,0.03,227.25,227.24,12.80084438]
[1738167868702,0.03,227.25,227.23,0.65998551]
[1738167870036,0.03,227.25,227.24,12.80084438]
[1738167870640,0.03,227.25,227.24,13.46073248]
[1738167871437,0.03,227.25,227.24,0.6598881]
[1738167873334,0.03,227.25,227.24,13.46073248]
[1738167873722,0.03,227.28,227.27,44.278844]
[1738167873932,12.80084438,227.46,227.33,30.0]
[1738167874120,12.80084438,227.45,227.38,12.80084438]
[1738167874321,12.80084438,227.45,227.39,0.65951092]
[1738167874729,12.80084438,227.4,227.38,121.6]
[1738167875037,0.12549,227.44,227.33,12.80084438]
[1738167875038,12.80084438,227.44,227.39,0.65963122]
[1738167875235,12.80084438,227.44,227.37,0.65954978]
[1738167875413,0.15549,227.48,227.37,0.65954978]
[1738167875414,12.80084438,227.41,227.37,0.65954978]
[1738167875618,12.80084438,227.4,227.37,0.65954978]
[1738167875921,12.80084438,227.4,227.34,0.65961481]
[1738167876225,12.80084438,227.41,227.34,0.65961481]
[1738167876737,12.80084438,227.43,227.36,12.80084438]
[1738167876937,14.11984438,227.44,227.37,13.46034607]
[1738167877138,12.80084438,227.42,227.37,0.65950169]
[1738167877446,12.80084438,227.41,227.37,0.65950169]
[1738167877648,12.80084438,227.41,227.35,0.65960853]
[1738167878134,12.80084438,227.4,227.35,0.65960853]
[1738167878529,12.80084438,227.41,227.35,0.65960853]
[1738167878743,12.80084438,227.43,227.36,12.80084438]
[1738167878931,12.80084438,227.43,227.37,0.6595325]
[1738167879329,12.80084438,227.44,227.37,0.6595325]
[1738167879530,12.80084438,227.44,227.37,13.46037688]
[1738167880143,14.11974438,227.45,227.38,12.80084438]
[1738167880442,1.3189,227.45,227.39,0.65947972]
[1738167880639,1.3189,227.45,227.39,13.4603241]
[1738167881026,1.3189,227.45,227.4,12.80084438]
[1738167881247,0.03,227.48,227.42,12.80084438]
[1738167881541,0.03,227.48,227.43,0.65934071]
[1738167881721,20.0,227.47,227.43,0.65934071]
[1738167881922,0.03,227.48,227.43,13.46018509]
[1738167882139,0.03,227.48,227.43,135.06018509]
[1738167882331,0.03,227.48,227.44,12.80084438]
[1738167882522,0.03,227.48,227.45,0.65929575]
[1738167883530,0.03,227.48,227.45,2.19879575]
[1738167885349,12.80084438,227.46,227.45,0.65929575]
[1738167885554,12.80084438,227.46,227.44,0.65940447]
[1738167886260,0.03,227.48,227.46,23.776884]
[1738167886427,0.03,227.48,227.47,43.46008666]
[1738167886951,0.03,227.48,227.47,71.63307066]
[1738167887646,0.03,227.48,227.47,78.44165066]
[1738167887949,0.03,227.48,227.47,80.19733066]
[1738167888132,0.03,227.48,227.47,79.69537066]
[1738167888923,0.03,227.48,227.47,21.52238666]
[1738167889147,0.03,227.48,227.47,8.72154228]
[1738167889554,0.03,227.48,227.47,0.65924228]
[1738167889732,0.03,227.48,227.45,0.65930617]
[1738167890127,0.03,227.48,227.47,13.17731438]
[1738167890459,0.03,227.48,227.47,13.83639366]
[1738167890624,0.03,227.48,227.47,15.59838366]
[1738167890829,0.03,227.48,227.47,15.47289366]
[1738167891037,0.03,227.48,227.47,19.99448366]
[1738167891856,0.03,227.48,227.47,355.77136766]
[1738167892153,0.03,227.48,227.47,355.11228838]
[1738167893652,0.03,227.48,227.47,476.71228838]
[1738167894358,12.80084438,227.64,227.54,30.0]
[1738167894540,12.80084438,227.64,227.57,12.80084438]
[1738167894742,14.11874438,227.64,227.58,0.65895333]
[1738167894932,1.3479,227.63,227.58,0.65895333]
[1738167896029,14.14874438,227.63,227.58,0.65895333]
[1738167896630,12.80084438,227.62,227.57,0.65899271]
[1738167896854,12.80084438,227.58,227.53,0.65902541]
[1738167897058,12.80084438,227.55,227.51,0.65902541]
[1738167897475,12.80084438,227.57,227.51,0.65902541]
[1738167897764,12.80084438,227.56,227.51,0.65902541]
[1738167897939,12.80084438,227.55,227.5,0.65919855]
[1738167899167,12.80084438,227.53,227.49,0.65920134]
[1738167899465,1.3185,227.52,227.49,0.65920134]
[1738167899669,1.3185,227.52,227.48,0.65929009]
[1738167900054,12.80084438,227.51,227.48,0.65929009]
[1738167900256,12.80084438,227.51,227.45,0.65931877]
[1738167900449,12.80084438,227.48,227.44,0.65933742]
[1738167900854,12.80084438,227.46,227.41,2.2757312]
[1738167901347,12.80084438,227.48,227.41,2.2757312]
[1738167901550,1.3188,227.47,227.41,2.2757312]
[1738167901751,12.80084438,227.49,227.42,12.80084438]
[1738167901945,1.3187,227.49,227.43,13.46020444]
[1738167902157,12.80084438,227.47,227.43,0.65936006]
[1738167902353,12.80084438,227.47,227.41,1.6163]
[1738167902354,12.80084438,227.47,227.42,0.65944807]
[1738167902943,12.80084438,227.46,227.4,0.65946364]
[1738167903341,12.80084438,227.46,227.38,19.36674438]
[1738167903342,14.11994438,227.42,227.37,0.659491]
[1738167903890,14.11984438,227.44,227.37,0.659491]
[1738167904054,12.80084438,227.49,227.42,12.80084438]
[1738167904370,20.0,227.47,227.43,13.4602682]
[1738167904561,12.80084438,227.52,227.44,12.80084438]
[1738167904767,12.80084438,227.52,227.45,0.65935655]
[1738167905077,20.0,227.49,227.45,0.65935655]
[1738167906177,14.11944438,227.5,227.45,0.65935655]
[1738167906473,14.11944438,227.5,227.43,0.65939992]
[1738167906684,12.80084438,227.44,227.43,0.65939992]
[1738167906883,12.80084438,227.44,227.35,83.2053]